fUSD/lending_fUSD_20240804
["ID","MTS","AMOUNT","RATE_DAILY","PERIOD"]
[334151816,1722798652305,-500.0,0.00023013,9]
[334151818,1722798652315,-679.69,0.00023013,9]
[334151820,1722798652324,-500.0,0.00023013,9]
[334151822,1722798652334,-682.52,0.00023013,9]
[334151824,1722798652343,-563.63,0.00023013,9]
[334151826,1722798652353,-500.0,0.00023013,9]
[334151828,1722798652363,-500.0,0.00023013,9]
[334151830,1722798652371,-151.0,0.00023013,7]
[334151832,1722798652380,-500.0,0.00023013,9]
[334151834,1722798652390,-500.0,0.00023013,9]
[334151836,1722798652399,-500.0,0.00023013,9]
[334151838,1722798652408,-500.0,0.00023013,9]
[334151840,1722798652417,-579.47,0.00023013,9]
[334151842,1722798652427,-500.0,0.00023013,9]
[334151844,1722798652437,-500.0,0.00023013,9]
[334151846,1722798652447,-554.29,0.00023013,9]
[334151848,1722798652457,-500.0,0.00023013,9]
[334151850,1722798652467,-500.0,0.00023013,9]
[334151852,1722798652476,-500.0,0.00023013,9]
[334151854,1722798652486,-500.0,0.00023013,9]
[334151856,1722798652495,-151.0,0.00023013,7]
[334151858,1722798652504,-500.0,0.00023013,9]
[334151860,1722798652514,-500.0,0.00023013,9]
[334151862,1722798652523,-500.0,0.00023013,9]
[334151864,1722798652532,-500.0,0.00023013,9]
[334151866,1722798652541,-500.0,0.00023013,9]
[334151868,1722798652551,-404.80470169,0.00023013,9]
[334151870,1722798652562,-503.82,0.00023013,9]
[334151872,1722798652572,-500.0,0.00023013,9]
[334151874,1722798652581,-500.0,0.00023013,9]
[334151876,1722798652590,-500.0,0.00023013,9]
[334151878,1722798652600,-580.76,0.00023013,9]
[334151880,1722798652609,-500.0,0.00023013,9]
[334151882,1722798652619,-500.0,0.00023013,9]
[334151884,1722798652628,-500.0,0.00023013,9]
[334151886,1722798652637,-500.0,0.00023013,9]
[334151888,1722798652647,-500.0,0.00023013,9]
[334151890,1722798652656,-500.0,0.00023013,9]
[334151892,1722798652665,-500.0,0.00023013,9]
[334151894,1722798652674,-525.91,0.00023013,9]
[334151896,1722798652683,-500.0,0.00023013,9]
[334151898,1722798652692,-500.0,0.00023013,9]
[334151900,1722798652701,-500.0,0.00023013,9]
[334151902,1722798652711,-500.0,0.00023013,9]
[334151904,1722798652720,-500.0,0.00023013,9]
[334151906,1722798652729,-500.0,0.00023013,9]
[334151908,1722798652738,-500.0,0.00023013,9]
[334151910,1722798652748,-500.0,0.00023013,9]
[334151912,1722798652757,-681.9,0.00023013,9]
[334151914,1722798652766,-676.62,0.00023013,9]
[334151916,1722798652775,-500.0,0.00023013,9]
[334151918,1722798652788,-507.65,0.00023013,9]
[334151921,1722798652799,-1159.52,0.00023013,9]
[334151923,1722798652810,-584.61,0.00023013,9]
[334151925,1722798652819,-500.0,0.00023013,9]
[334151927,1722798652829,-1027.3,0.00023013,9]
[334151929,1722798652838,-500.0,0.00023013,9]
[334151931,1722798652847,-500.0,0.00023013,9]
[334151933,1722798652856,-642.86,0.00023013,9]
[334151935,1722798652866,-500.0,0.00023013,9]
[334151937,1722798652875,-531.83,0.00023013,9]
[334151939,1722798652884,-500.0,0.00023013,9]
[334151941,1722798652894,-500.0,0.00023013,9]
[334151943,1722798652904,-500.0,0.00023013,9]
[334151945,1722798652913,-505.5,0.00023013,9]
[334151947,1722798652922,-500.0,0.00023013,9]
[334151949,1722798652935,-500.0,0.00023013,9]
[334151951,1722798652945,-500.0,0.00023013,9]
[334151953,1722798652955,-500.0,0.00023013,9]
[334151956,1722798652964,-500.0,0.00023013,9]
[334151958,1722798652974,-500.0,0.00023013,9]
[334151960,1722798652983,-500.0,0.00023013,9]
[334151962,1722798652992,-500.0,0.00023013,9]
[334151964,1722798653002,-500.0,0.00023013,9]
[334151966,1722798653011,-1093.79,0.00023013,9]
[334151968,1722798653020,-500.0,0.00023013,9]
[334151970,1722798653029,-500.0,0.00023013,9]
[334151972,1722798653038,-500.0,0.00023013,9]
[334151974,1722798653048,-500.0,0.00023013,9]
[334151976,1722798653057,-500.0,0.00023013,9]
[334151978,1722798653067,-500.0,0.00023013,9]
[334151980,1722798653076,-500.0,0.00023013,9]
[334151982,1722798653085,-500.0,0.00023013,9]
[334151984,1722798653094,-500.0,0.00023013,9]
[334151986,1722798653104,-500.0,0.00023013,9]
[334151988,1722798653113,-500.0,0.00023013,9]
[334151990,1722798653122,-500.0,0.00023013,9]
[334151992,1722798653132,-740.56,0.00023013,9]
[334151994,1722798653141,-500.0,0.00023013,9]
[334151996,1722798653150,-500.0,0.00023013,9]
[334151998,1722798653159,-647.7489751,0.00023013,9]
[334152000,1722798653168,-500.0,0.00023013,9]
[334152002,1722798653177,-500.0,0.00023013,9]
[334152004,1722798653187,-500.0,0.00023013,9]
[334152006,1722798653196,-500.0,0.00023013,9]
[334152008,1722798653205,-500.0,0.00023013,9]
[334152010,1722798653216,-745.12,0.00023013,9]
[334152012,1722798653229,-500.0,0.00023013,9]
[334152014,1722798653238,-500.0,0.00023013,9]
[334152016,1722798653247,-500.0,0.00023013,9]
[334152018,1722798653257,-500.0,0.00023013,9]
[334152020,1722798653267,-500.0,0.00023013,9]
[334152022,1722798653276,-1006.85,0.00023013,9]
[334152024,1722798653286,-891.22,0.00023013,9]
[334152026,1722798653295,-500.0,0.00023013,9]
[334152028,1722798653304,-180.80757626,0.00023013,9]
[334152030,1722798653316,-500.0,0.00023013,9]
[334152032,1722798653326,-562.79,0.00023013,9]
[334152035,1722798653338,-747.91,0.00023013,9]
[334152037,1722798653347,-500.0,0.00023013,9]
[334152039,1722798653357,-500.0,0.00023013,9]
[334152041,1722798653366,-571.94,0.00023013,9]
[334152043,1722798653376,-500.0,0.00023013,9]
[334152045,1722798653385,-630.74791657,0.00023013,9]
[334152047,1722798653395,-500.0,0.00023013,9]
[334152049,1722798653404,-500.0,0.00023013,9]
[334152051,1722798653415,-500.0,0.00023013,9]
[334152053,1722798653424,-500.0,0.00023013,9]
[334152055,1722798653434,-500.0,0.00023013,9]
[334152057,1722798653444,-4510.53,0.00023013,9]
[334152059,1722798653454,-494.63908439,0.00023013,9]
[334152061,1722798653463,-802.68,0.00023013,9]
[334152063,1722798653473,-500.0,0.00023013,9]
[334152065,1722798653483,-500.0,0.00023013,9]
[334152067,1722798653493,-500.0,0.00023013,9]
[334152069,1722798653502,-500.0,0.00023013,9]
[334152071,1722798653512,-500.0,0.00023013,9]
[334152073,1722798653522,-500.0,0.00023013,9]
[334152075,1722798653531,-500.0,0.00023013,9]
[334152078,1722798653541,-500.0,0.00023013,9]
[334152080,1722798653550,-500.0,0.00023013,9]
[334152082,1722798653561,-500.0,0.00023013,9]
[334152084,1722798653571,-500.0,0.00023013,9]
[334152086,1722798653580,-500.0,0.00023013,9]
[334152087,1722798653590,-500.0,0.00023013,9]
[334152089,1722798653600,-500.0,0.00023013,9]
[334152092,1722798653609,-500.0,0.00023013,9]
[334152094,1722798653619,-500.0,0.00023013,9]
[334152096,1722798653628,-500.0,0.00023013,9]
[334152098,1722798653639,-500.0,0.00023013,9]
[334152100,1722798653648,-500.0,0.00023013,9]
[334152102,1722798653658,-500.0,0.00023013,9]
[334152104,1722798653668,-500.0,0.00023013,9]
[334152106,1722798653678,-511.44,0.00023013,9]
[334152108,1722798653688,-500.0,0.00023013,9]
[334152110,1722798653698,-500.0,0.00023013,9]
[334152112,1722798653707,-500.0,0.00023013,9]
[334152114,1722798653717,-500.0,0.00023013,9]
[334152116,1722798653727,-500.0,0.00023013,9]
[334152118,1722798653737,-707.46,0.00023013,9]
[334152120,1722798653747,-500.0,0.00023013,9]
[334152122,1722798653757,-500.0,0.00023013,9]
[334152124,1722798653767,-845.61,0.00023013,9]
[334152126,1722798653777,-500.0,0.00023013,9]
[334152127,1722798653787,-500.0,0.00023013,9]
[334152128,1722798653797,-500.0,0.00023013,9]
[334152129,1722798653806,-500.0,0.00023013,9]
[334152130,1722798653817,-500.0,0.00023013,9]
[334152131,1722798653827,-500.0,0.00023013,9]
[334152132,1722798653836,-642.56,0.00023013,9]
[334152133,1722798653847,-500.0,0.00023013,9]
[334152134,1722798653857,-500.0,0.00023013,9]
[334152135,1722798653867,-500.0,0.00023013,9]
[334152137,1722798653877,-948.03,0.00023013,9]
[334152139,1722798653888,-151.0,0.00023013,7]
[334152141,1722798653901,-392.63516622,0.00023013,9]
[334152143,1722798653912,-151.0,0.00023013,7]
[334152145,1722798653922,-540.14695961,0.00023013,9]
[334152147,1722798653932,-500.0,0.00023013,9]
[334152149,1722798653942,-506.07,0.00023013,9]
[334152152,1722798653953,-500.0,0.00023013,9]
[334152154,1722798653963,-500.0,0.00023013,2]
[334152156,1722798653972,-1665.39,0.00023013,9]
[334152157,1722798653982,-500.0,0.00023013,9]
[334152159,1722798653993,-500.0,0.00023013,9]
[334152161,1722798654003,-500.0,0.00023013,9]
[334152163,1722798654013,-500.0,0.00023013,9]
[334152165,1722798654023,-500.0,0.00023013,9]
[334152167,1722798654033,-500.0,0.00023013,9]
[334152169,1722798654044,-500.0,0.00023013,9]
[334152171,1722798654056,-500.0,0.00023013,9]
[334152174,1722798654071,-500.0,0.00023013,9]
[334152176,1722798654081,-500.0,0.00023013,9]
[334152178,1722798654092,-500.0,0.00023013,9]
[334152180,1722798654102,-500.0,0.00023013,9]
[334152182,1722798654111,-500.0,0.00023013,9]
[334152184,1722798654122,-500.0,0.00023013,9]
[334152186,1722798654132,-500.0,0.00023013,9]
[334152188,1722798654142,-2223.1,0.00023013,9]
[334152190,1722798654153,-1858.38,0.00023013,9]
[334152192,1722798654163,-626.23,0.00023013,9]
[334152194,1722798654174,-500.0,0.00023013,9]
[334152196,1722798654184,-500.0,0.00023013,9]
[334152198,1722798654194,-500.0,0.00023013,9]
[334152200,1722798654204,-518.89,0.00023013,9]
[334152202,1722798654217,-500.0,0.00023013,9]
[334152204,1722798654228,-500.0,0.00023013,9]
[334152207,1722798654238,-500.0,0.00023013,9]
[334152209,1722798654248,-500.0,0.00023013,9]
[334152211,1722798654259,-500.0,0.00023013,9]
[334152213,1722798654269,-500.0,0.00023013,9]
[334152215,1722798654280,-500.0,0.00023013,9]
[334152217,1722798654291,-500.0,0.00023013,9]
[334152219,1722798654303,-3941.82,0.00023013,9]
[334152221,1722798654317,-500.0,0.00023013,9]
[334152223,1722798654327,-7951.93,0.00023013,9]
[334152225,1722798654337,-500.0,0.00023013,9]
[334152227,1722798654348,-500.0,0.00023013,9]
[334152229,1722798654358,-500.0,0.00023013,9]
[334152231,1722798654369,-151.0,0.00023013,7]
[334152234,1722798654379,-500.0,0.00023013,9]
[334152236,1722798654389,-151.0,0.00023013,7]
[334152238,1722798654400,-500.0,0.00023013,9]
[334152240,1722798654413,-151.0,0.00023013,7]
[334152242,1722798654423,-500.0,0.00023013,9]
[334152244,1722798654434,-500.0,0.00023013,9]
[334152246,1722798654447,-151.0,0.00023013,7]
[334152248,1722798654458,-500.0,0.00023013,9]
[334152250,1722798654469,-763.46,0.00023013,9]
[334152252,1722798654480,-500.0,0.00023013,9]
[334152254,1722798654490,-500.0,0.00023013,9]
[334152257,1722798654501,-500.0,0.00023013,9]
[334152259,1722798654511,-269.790134,0.00023013,7]
[334152261,1722798654521,-500.0,0.00023013,9]
[334152263,1722798654531,-500.0,0.00023013,9]
[334152265,1722798654542,-877.49,0.00023013,9]
[334152267,1722798654552,-500.0,0.00023013,9]
[334152269,1722798654570,-4672.21,0.00023013,9]
[334152271,1722798654581,-500.0,0.00023013,9]
[334152273,1722798654591,-722.11,0.00023013,9]
[334152275,1722798654602,-500.0,0.00023013,9]
[334152278,1722798654613,-500.0,0.00023013,9]
[334152280,1722798654624,-500.0,0.00023013,9]
[334152281,1722798654634,-500.0,0.00023013,9]
[334152283,1722798654644,-500.0,0.00023013,9]
[334152285,1722798654655,-500.0,0.00023013,9]
[334152287,1722798654666,-609.81,0.00023013,9]
[334152289,1722798654677,-500.0,0.00023013,9]
[334152291,1722798654688,-500.0,0.00023013,9]
[334152293,1722798654698,-725.12,0.00023013,9]
[334152295,1722798654709,-500.0,0.00023013,9]
[334152297,1722798654719,-5768.85,0.00023013,9]
[334152299,1722798654730,-500.0,0.00023013,9]
[334152300,1722798654741,-620.5,0.00023013,9]
[334152302,1722798654752,-500.0,0.00023013,9]
[334152304,1722798654763,-500.0,0.00023013,9]
[334152306,1722798654773,-500.0,0.00023013,9]
[334152308,1722798654784,-500.0,0.00023013,9]
[334152310,1722798654794,-500.0,0.00023013,9]
[334152312,1722798654804,-500.0,0.00023013,9]
[334152314,1722798654817,-1238.31,0.00023013,9]
[334152316,1722798654828,-500.0,0.00023013,9]
[334152318,1722798654838,-151.0,0.00023013,7]
[334152320,1722798654849,-623.59832984,0.00023013,9]
[334152322,1722798654861,-500.0,0.00023013,9]
[334152324,1722798654871,-595.55,0.00023013,9]
[334152326,1722798654883,-13329.63,0.00023013,9]
[334152328,1722798654894,-500.0,0.00023013,9]
[334152330,1722798654905,-500.0,0.00023013,9]
[334152332,1722798654915,-500.0,0.00023013,9]
[334152335,1722798654926,-500.54283199,0.00023013,9]
[334152337,1722798654936,-500.0,0.00023013,9]
[334152339,1722798654946,-779.48,0.00023013,9]
[334152341,1722798654956,-500.0,0.00023013,9]
[334152343,1722798654967,-500.0,0.00023013,9]
[334152345,1722798654977,-500.0,0.00023013,9]
[334152347,1722798654987,-500.0,0.00023013,9]
[334152349,1722798654997,-500.0,0.00023013,9]
[334152351,1722798655007,-500.0,0.00023013,9]
[334152353,1722798655017,-500.0,0.00023013,9]
[334152354,1722798655027,-500.0,0.00023013,9]
[334152356,1722798655037,-500.0,0.00023013,9]
[334152358,1722798655048,-880.36,0.00023013,9]
[334152360,1722798655059,-574.57,0.00023013,9]
[334152362,1722798655071,-500.0,0.00023013,9]
[334152364,1722798655081,-500.0,0.00023013,9]
[334152366,1722798655092,-500.0,0.00023013,9]
[334152368,1722798655102,-568.48,0.00023013,9]
[334152370,1722798655112,-454.21761445,0.00023013,9]
[334152372,1722798655123,-771.26,0.00023013,9]
[334152374,1722798655134,-1506.73,0.00023013,9]
[334152376,1722798655144,-500.0,0.00023013,9]
[334152377,1722798655154,-892.41,0.00023013,9]
[334152380,1722798655164,-295.33148009,0.00023013,9]
[334152382,1722798655175,-500.0,0.00023013,9]
[334152384,1722798655185,-656.07,0.00023013,9]
[334152386,1722798655196,-682.05,0.00023013,9]
[334152388,1722798655206,-500.0,0.00023013,9]
[334152390,1722798655219,-3072.35,0.00023013,9]
[334152392,1722798655229,-500.0,0.00023013,9]
[334152394,1722798655240,-500.0,0.00023013,9]
[334152396,1722798655252,-500.0,0.00023013,9]
[334152398,1722798655263,-500.0,0.00023013,9]
[334152400,1722798655274,-500.0,0.00023013,9]
[334152402,1722798655285,-1036.71,0.00023013,9]
[334152404,1722798655297,-500.0,0.00023013,9]
[334152406,1722798655307,-500.0,0.00023013,9]
[334152408,1722798655320,-151.0,0.00023013,7]
[334152410,1722798655330,-231.45025485,0.00023013,9]
[334152413,1722798655341,-151.0,0.00023013,7]
[334152415,1722798655351,-151.0,0.00023013,7]
[334152417,1722798655362,-500.0,0.00023013,9]
[334152419,1722798655372,-2219.46,0.00023013,9]
[334152421,1722798655383,-503.37,0.00023013,9]
[334152423,1722798655394,-500.0,0.00023013,9]
[334152425,1722798655404,-1161.13,0.00023013,9]
[334152427,1722798655415,-500.0,0.00023013,9]
[334152428,1722798655425,-1125.42,0.00023013,9]
[334152430,1722798655435,-932.38,0.00023013,9]
[334152432,1722798655446,-3992.62,0.00023013,9]
[334152434,1722798655456,-500.0,0.00023013,9]
[334152436,1722798655468,-500.0,0.00023013,9]
[334152438,1722798655478,-500.0,0.00023013,9]
[334152440,1722798655489,-899.73,0.00023013,9]
[334152442,1722798655499,-500.0,0.00023013,9]
[334152444,1722798655510,-500.0,0.00023013,9]
[334152446,1722798655520,-500.0,0.00023013,9]
[334152448,1722798655530,-500.0,0.00023013,9]
[334152450,1722798655541,-500.0,0.00023013,9]
[334152452,1722798655551,-4318.53,0.00023013,9]
[334152454,1722798655563,-500.0,0.00023013,9]
[334152456,1722798655573,-1204.46,0.00023013,9]
[334152458,1722798655584,-500.0,0.00023013,9]
[334152460,1722798655595,-500.0,0.00023013,9]
[334152462,1722798655605,-1189.43,0.00023013,9]
[334152464,1722798655614,-500.0,0.00023013,9]
[334152466,1722798655626,-1127.6,0.00023013,9]
[334152468,1722798655636,-820.39,0.00023013,9]
[334152470,1722798655647,-500.0,0.00023013,9]
[334152472,1722798655657,-500.0,0.00023013,9]
[334152474,1722798655667,-1790.2,0.00023013,9]
[334152476,1722798655679,-500.0,0.00023013,9]
[334152478,1722798655690,-500.0,0.00023013,9]
[334152480,1722798655700,-500.0,0.00023013,9]
[334152482,1722798655711,-500.0,0.00023013,9]
[334152484,1722798655721,-500.0,0.00023013,9]
[334152486,1722798655731,-500.0,0.00023013,9]
[334152488,1722798655742,-671.87,0.00023013,9]
[334152490,1722798655752,-1178.57,0.00023013,9]
[334152493,1722798655763,-775.86,0.00023013,9]
[334152495,1722798655774,-500.0,0.00023013,9]
[334152497,1722798655784,-500.0,0.00023013,9]
[334152499,1722798655795,-500.0,0.00023013,9]
[334152501,1722798655806,-1146.49,0.00023013,9]
[334152503,1722798655819,-500.0,0.00023013,9]
[334152505,1722798655830,-500.0,0.00023013,9]
[334152507,1722798655841,-500.0,0.00023013,9]
[334152509,1722798655851,-1947.88,0.00023013,9]
[334152511,1722798655861,-500.0,0.00023013,9]
[334152513,1722798655871,-787.03,0.00023013,9]
[334152515,1722798655881,-574.15,0.00023013,9]
[334152517,1722798655892,-571.83,0.00023013,9]
[334152519,1722798655902,-1156.83,0.00023013,9]
[334152521,1722798655912,-500.0,0.00023013,9]
[334152523,1722798655923,-435.244114,0.00023013,7]
[334152525,1722798655933,-435.244114,0.00023013,7]
[334152527,1722798655943,-500.0,0.00023013,9]
[334152529,1722798655953,-500.0,0.00023013,9]
[334152531,1722798655963,-1253.03,0.00023013,9]
[334152533,1722798655974,-500.0,0.00023013,9]
[334152535,1722798655984,-500.0,0.00023013,9]
[334152537,1722798655994,-726.56,0.00023013,9]
[334152539,1722798656004,-3576.06,0.00023013,9]
[334152541,1722798656014,-500.0,0.00023013,9]
[334152543,1722798656024,-500.0,0.00023013,9]
[334152546,1722798656035,-435.244114,0.00023013,7]
[334152548,1722798656044,-435.244114,0.00023013,7]
[334152550,1722798656054,-1316.88,0.00023013,9]
[334152552,1722798656067,-500.0,0.00023013,9]
[334152554,1722798656076,-500.0,0.00023013,9]
[334152556,1722798656086,-943.58,0.00023013,9]
[334152558,1722798656096,-500.0,0.00023013,9]
[334152560,1722798656106,-500.0,0.00023013,9]
[334152562,1722798656116,-500.0,0.00023013,9]
[334152564,1722798656126,-639.25,0.00023013,9]
[334152566,1722798656136,-500.0,0.00023013,9]
[334152568,1722798656146,-818.95,0.00023013,9]
[334152570,1722798656156,-500.0,0.00023013,9]
[334152588,1722798656440,-718.19,0.00023013,9]
[334152590,1722798656450,-537.13,0.00023013,9]
[334152592,1722798656459,-677.42,0.00023013,9]
[334152594,1722798656469,-151.0,0.00023013,7]
[334152596,1722798656479,-500.0,0.00023013,9]
[334152598,1722798656489,-500.0,0.00023013,9]
[334152600,1722798656498,-151.0,0.00023013,7]
[334152602,1722798656508,-930.77,0.00023013,9]
[334152604,1722798656517,-2582.14,0.00023013,9]
[334152606,1722798656527,-1058.84,0.00023013,9]
[334152607,1722798656536,-500.0,0.00023013,9]
[334152609,1722798656547,-571.55,0.00023013,9]
[334152611,1722798656558,-500.0,0.00023013,9]
[334152613,1722798656568,-500.0,0.00023013,9]
[334152615,1722798656578,-1057.01,0.00023013,9]
[334152617,1722798656589,-500.0,0.00023013,9]
[334152618,1722798656598,-847.79,0.00023013,9]
[334152620,1722798656607,-500.0,0.00023013,9]
[334152622,1722798656617,-1672.67,0.00023013,9]
[334152624,1722798656626,-1354.84,0.00023013,9]
[334152626,1722798656636,-500.0,0.00023013,9]
[334152628,1722798656645,-500.0,0.00023013,9]
[334152630,1722798656655,-500.0,0.00023013,9]
[334152632,1722798656664,-754.74,0.00023013,9]
[334152634,1722798656673,-500.0,0.00023013,9]
[334152636,1722798656683,-500.0,0.00023013,9]
[334152637,1722798656692,-530.16,0.00023013,9]
[334152639,1722798656702,-500.0,0.00023013,9]
[334152641,1722798656712,-500.0,0.00023013,9]
[334152643,1722798656723,-823.21,0.00023013,9]
[334152645,1722798656734,-500.0,0.00023013,9]
[334152647,1722798656745,-500.0,0.00023013,9]
[334152649,1722798656755,-500.0,0.00023013,9]
[334152651,1722798656765,-1213.41,0.00023013,9]
[334152653,1722798656775,-500.0,0.00023013,9]
[334152655,1722798656786,-151.0,0.00023013,7]
[334152657,1722798656796,-2858.11,0.00023013,9]
[334152659,1722798656806,-500.0,0.00023013,9]
[334152661,1722798656818,-151.0,0.00023013,7]
[334152663,1722798656828,-500.0,0.00023013,9]
[334152665,1722798656837,-500.0,0.00023013,9]
[334152667,1722798656848,-500.0,0.00023013,9]
[334152669,1722798656859,-500.0,0.00023013,9]
[334152671,1722798656870,-500.0,0.00023013,9]
[334152673,1722798656880,-514.756804,0.00023013,9]
[334152675,1722798656891,-1162.81,0.00023013,9]
[334152677,1722798656903,-500.0,0.00023013,9]
[334152678,1722798656914,-951.18,0.00023013,9]
[334152680,1722798656925,-970.39,0.00023013,9]
[334152682,1722798656935,-500.0,0.00023013,9]
[334152684,1722798656947,-656.47,0.00023013,9]
[334152686,1722798656957,-500.0,0.00023013,9]
[334152688,1722798656968,-1290.91,0.00023013,9]
[334152690,1722798656978,-1219.83,0.00023013,9]
[334152692,1722798656988,-500.0,0.00023013,9]
[334152693,1722798656997,-839.51,0.00023013,9]
[334152695,1722798657007,-2121.03,0.00023013,9]
[334152697,1722798657017,-591.43020352,0.00023013,9]
[334152699,1722798657029,-500.0,0.00023013,9]
[334152701,1722798657039,-500.0,0.00023013,9]
[334152703,1722798657049,-500.0,0.00023013,9]
[334152705,1722798657060,-771.62,0.00023013,9]
[334152706,1722798657069,-9071.11,0.00023013,9]
[334152708,1722798657078,-500.0,0.00023013,9]
[334152710,1722798657087,-1468.93,0.00023013,9]
[334152712,1722798657099,-877.82,0.00023013,9]
[334152714,1722798657110,-500.0,0.00023013,9]
[334152716,1722798657121,-500.0,0.00023013,9]
[334152718,1722798657131,-500.0,0.00023013,9]
[334152720,1722798657141,-500.0,0.00023013,9]
[334152722,1722798657152,-1573.91,0.00023013,9]
[334152724,1722798657163,-500.0,0.00023013,9]
[334152725,1722798657173,-500.0,0.00023013,9]
[334152727,1722798657183,-500.0,0.00023013,9]
[334152729,1722798657193,-500.0,0.00023013,9]
[334152731,1722798657206,-1985.54,0.00023013,9]
[334152733,1722798657216,-2420.97,0.00023013,9]
[334152735,1722798657229,-500.0,0.00023013,9]
[334152737,1722798657238,-500.0,0.00023013,9]
[334152739,1722798657248,-1195.71,0.00023013,9]
[334152741,1722798657259,-500.0,0.00023013,9]
[334152743,1722798657269,-500.0,0.00023013,9]
[334152745,1722798657279,-684.03,0.00023013,9]
[334152747,1722798657288,-500.0,0.00023013,9]
[334152749,1722798657299,-500.0,0.00023013,9]
[334152751,1722798657311,-500.0,0.00023013,9]
[334152753,1722798657320,-500.0,0.00023013,9]
[334152755,1722798657330,-1001.41,0.00023013,9]
[334152757,1722798657339,-500.0,0.00023013,9]
[334152759,1722798657349,-500.0,0.00023013,9]
[334152761,1722798657358,-500.0,0.00023013,9]
[334152763,1722798657367,-500.0,0.00023013,9]
[334152765,1722798657376,-876.36,0.00023013,9]
[334152767,1722798657386,-500.0,0.00023013,9]
[334152769,1722798657395,-4061.11,0.00023013,9]
[334152771,1722798657405,-1326.94,0.00023013,9]
[334152773,1722798657414,-500.0,0.00023013,9]
[334152775,1722798657424,-500.0,0.00023013,9]
[334152777,1722798657433,-500.0,0.00023013,9]
[334152779,1722798657443,-500.0,0.00023013,9]
[334152781,1722798657452,-500.0,0.00023013,9]
[334152783,1722798657462,-521.7,0.00023013,9]
[334152785,1722798657472,-327.5303345,0.00023013,9]
[334152786,1722798657481,-500.0,0.00023013,9]
[334152787,1722798657491,-500.0,0.00023013,9]
[334152789,1722798657500,-500.0,0.00023013,9]
[334152791,1722798657510,-500.0,0.00023013,9]
[334152793,1722798657519,-500.0,0.00023013,9]
[334152795,1722798657528,-500.0,0.00023013,9]
[334152797,1722798657538,-500.0,0.00023013,9]
[334152799,1722798657547,-500.0,0.00023013,9]
[334152801,1722798657557,-875.83,0.00023013,9]
[334152803,1722798657569,-500.0,0.00023013,9]
[334152805,1722798657578,-500.0,0.00023013,9]
[334152807,1722798657588,-500.0,0.00023013,9]
[334152809,1722798657598,-473.45,0.00023013,9]
[334152811,1722798657607,-1227.6,0.00023013,9]
[334152813,1722798657616,-500.0,0.00023013,9]
[334152815,1722798657626,-1898.13,0.00023013,9]
[334152817,1722798657636,-1639.02,0.00023013,9]
[334152819,1722798657646,-1567.6,0.00023013,9]
[334152821,1722798657655,-500.0,0.00023013,9]